Cogmind - Beta 13 @@@ ROGUE MODE // 2024.04.07 @ 12:40:39 Player: Vox Result: Destroyed by G-47 Trooper with Particle Gun Performance ------------- Evolutions (2) 1000 Regions Visited (4) 800 Robots Destroyed (65) 325 Value Destroyed (1997) 1997 Prototype IDs (0) 0 Alien Tech Used (0) 0 Bonus (114) 114 TOTAL SCORE: 4236 Bonus ------- Follower Combat Kills 114 Cogmind --------- Core Integrity 0/550 Matter 240/300 Energy 158/160 System Corruption 0% Temperature Cool (9) Movement Flying (115) Ox1 Location -8/Materials Parts ------- > --- POWER (1) -------- Light Nuclear Core > --- PROPULSION (4) --- Cesium-ion Thruster > --- UTILITY (4) ------ (None) > --- WEAPON (2) ------- Grenade Launcher > --- INVENTORY (5) ---- Improved Signal Interpreter Mini Grenade Launcher Peak State ------------ > --- POWER ------------ Reinforced Ion Engine > --- PROPULSION ------- Aluminum Leg Improved Aluminum Leg Carbon-fiber Leg Carbon-fiber Leg > --- UTILITY ---------- Small Storage Unit Hardened Medium Armor Plating Hacking Suite Hacking Suite > --- WEAPON ----------- Heavy Flail Scythe > --- INVENTORY -------- Reinforced Ion Engine Aluminum Leg Cesium-ion Thruster Hardened Medium Armor Plating Assault Rifle Shotgun Shotgun Grenade Launcher [Rating: 28] Favorites ----------- Power Reinforced Ion Engine Engine Reinforced Ion Engine Power Core Light Nuclear Core Propulsion Aluminum Leg Treads Light Treads Leg Aluminum Leg Flight Unit Cesium-ion Thruster Utility Signal Interpreter Storage Medium Storage Unit Processor Signal Interpreter Hackware Hacking Suite Protection Hardened Medium Armor Plating Weapon Autogun Energy Gun Medium Laser Energy Cannon Particle Cannon Ballistic Gun Autogun Launcher Grenade Launcher Impact Weapon Heavy Flail Slashing Weapon Scythe Build | -11 -10 -10 -9 -8 ------- Run | Yrd Mat Min Mat Mat Slots Evolved 4 | . . . 2 2 Power . | . . . . . Propulsion 2 | . . . . 2 Utility 2 | . . . 2 . Weapon . | . . . . . Parts Attached 59 | 6 19 4 12 18 Power 9 | 1 5 . 1 2 Engine 8 | 1 5 . 1 1 Core 1 | . . . . 1 Reactor . | . . . . . Propulsion 22 | 2 5 1 5 9 Treads 2 | 2 . . . . Leg 19 | . 5 1 5 8 Wheel . | . . . . . Hover . | . . . . . Flight 1 | . . . . 1 Utility 12 | 1 2 . 3 6 Device . | . . . . . Storage 3 | 1 1 . . 1 Processor 1 | . 1 . . . Hackware 2 | . . . 1 1 Protection 6 | . . . 2 4 Artifact . | . . . . . Weapon 16 | 2 7 3 3 1 Energy Gun 2 | 2 . . . . Energy Cannon 2 | . . . 2 . Ballistic Gun 8 | . 7 1 . . Ballistic Cannon . | . . . . . Launcher 1 | . . . . 1 Special Weapon . | . . . . . Impact Weapon 2 | . . 2 . . Slashing Weapon 1 | . . . 1 . Piercing Weapon . | . . . . . Special Melee Weapon . | . . . . . Unidentified Prototypes . | . . . . . Parts Lost 12 | . . . . 12 Power 1 | . . . . 1 Propulsion 6 | . . . . 6 Utility 4 | . . . . 4 Weapon 1 | . . . . 1 Highest Loss Streak 10 | . . . . 10 To Critical Strikes . | . . . . . Average Slot Usage (%) 98 | . 97 99 99 95 Engine 12 | . 13 14 11 8 Treads 1 | . 2 . . . Leg 26 | . 25 28 22 33 Storage 12 | . 14 14 11 8 Processor 10 | . 12 14 11 1 Hackware 5 | . . . 11 14 Protection 4 | . . . 11 9 Ballistic Gun 14 | . 25 15 6 . Impact Weapon 6 | . . 12 11 8 Slashing Weapon 2 | . . . 1 8 Naked Turns . | . . . . . Heaviest Build 36 | 12 26 26 35 36 Greatest Support 53 | 40 40 25 26 53 Greatest Overweight (x) 3 | . 3 1 1 2 Average Overweight (x) . | . . . 1 . Largest Inventory Capacity 10 | 8 10 10 10 10 Average Capacity 9 | 7 9 10 10 8 Most Carried 10 | 6 10 10 10 10 Average Carried 9 | 4 9 9 9 7 Final Capacity 10 | 8 10 10 10 5 Final Carried 10 | 6 10 10 10 2 Class Distribution -------------------- 67% | Mutant 19% | Scavenger-Mutant 13% | Hacker-Mutant Dominant Class ---------------- Mutant | -10/Materials Scavenger-Mutant | -10/Mines Mutant | -9/Materials Hacker-Mutant | -8/Materials Resources | -11 -10 -10 -9 -8 ----------- Run | Yrd Mat Min Mat Mat Matter Collected 1240 | 195 662 49 199 135 Remotely . | . . . . . Salvage Created 2448 | . 775 . 688 985 Parts 120 | . 40 . 31 49 Haulers Intercepted . | . . . . . Recyclers Shooed 2 | . 1 . 1 . Parts Field Recycled . | . . . . . Retrieved Matter . | . . . . . Parts Self-Destructed . | . . . . . Prevented . | . . . . . Kills | -11 -10 -10 -9 -8 ------- Run | Yrd Mat Min Mat Mat Combat Hostiles Destroyed 54 | . 17 . 16 21 Melee 28 | . . . 8 20 Guns 21 | . 17 . 4 . AOE 1 | . . . . 1 Classes Destroyed 10 | . 6 . 3 1 Worker 4 | . 1 . . 3 Builder 2 | . 1 . . 1 Recycler 2 | . 1 . 1 . Watcher 3 | . 2 . 1 . Swarmer 9 | . 4 . 2 3 Grunt 36 | . 13 . 9 14 Brawler 1 | . . . 1 . Duelist 1 | . . . 1 . Sentry 6 | . . . 3 3 Hunter 1 | . . . . 1 Best Kill Streak 13 | . 3 . 7 13 Combat Bots Only 9 | . 3 . 6 9 Max Kills in Single Turn 3 | . 1 . 1 3 Gunslinging . | . . . . . Exploded 1 | . . . . 1 Melee 1 | . . . 1 1 Uniques/NPCs Destroyed . | . . . . . Combat | -11 -10 -10 -9 -8 -------- Run | Yrd Mat Min Mat Mat Hostile Shots Fired 421 | . 91 2 87 241 Missed 112 | . 21 1 24 66 Damage Taken 3939 | . 709 34 750 2446 Core 754 | . 97 . 98 559 Absorbed by Shields . | . . . . . Regen/Repaired (Parts) 415 | . . . . 415 Core Remaining (%) 78 | 100 . 61 75 . Volleys Fired 95 | . 60 . 33 2 Largest 2 | . 2 . 1 1 Hottest 100 | . 100 . 20 30 Shots Fired 155 | . 120 . 33 2 Gun 153 | . 120 . 33 . Cannon . | . . . . . Launcher 2 | . . . . 2 Special . | . . . . . Kinetic 127 | . 94 . 33 . Thermal 26 | . 26 . . . Explosive 2 | . . . . 2 Electromagnetic . | . . . . . Robot Hit Streak 13 | . 13 . 9 3 Robot Miss Streak 4 | . 4 . 4 . Penetration Max . | . . . . . Secondary Targets 3 | . 3 . . . Max Gunslinging Chain 1 | . 1 . . . Shots Hit Robots 174 | . 72 1 50 51 Core Hits 79 | . 32 . 13 34 Critical Kills 1 | . . . 1 . Critical Parts Destroyed 7 | . 3 . 3 1 Critical Strikes 22 | . 3 . 7 12 Destroy 4 | . 3 . 1 . Smash 6 | . . . 5 1 Sever 12 | . . . 1 11 Melee Attacks 123 | . . 2 46 75 Impact 58 | . . 2 42 14 Slashing 65 | . . . 4 61 Piercing . | . . . . . Sneak Attacks 5 | . . 1 2 2 Combat Hostiles . | . . . . . Follow-up Attacks 3 | . . . . 3 Damage Inflicted 4525 | . 909 58 1589 1969 Guns 1029 | . 909 . 120 . Cannons . | . . . . . Explosions 303 | . . . . 303 Melee 3193 | . . 58 1469 1666 Ramming . | . . . . . Kinetic 902 | . 782 . 120 . Thermal 127 | . 127 . . . Explosive 303 | . . . . 303 Electromagnetic . | . . . . . Impact 1680 | . . 58 1400 222 Slashing 1513 | . . . 69 1444 Piercing . | . . . . . Highest Corruption 7 | . 7 7 . . Average Corruption 6 | . 6 7 . . Corruption Purged . | . . . . . Corruption Blocked . | . . . . . Effects 71 | . 45 26 . . Message Errors 17 | . 13 4 . . Matter Fused 12 | . 7 5 . . Heat Flow Errors 13 | . 7 6 . . Energy Discharges 9 | . 4 5 . . Parts Rejected 2 | . 2 . . . Parts Fused 1 | . 1 . . . Data Loss (minor) 12 | . 9 3 . . Data Loss (major) 3 | . 1 2 . . Alerts 2 | . 1 1 . . Overload Shots . | . . . . . Overflow Damage 331 | . . 38 201 92 Projectiles . | . . . . . Explosions . | . . . . . Melee 331 | . . 38 201 92 Knockbacks 7 | . . . 7 . Impact 7 | . . . 7 . Kinetic . | . . . . . Secondary . | . . . . . Self-Inflicted Damage . | . . . . . Shots . | . . . . . Rammed . | . . . . . Targets Rammed . | . . . . . Kicked . | . . . . . Crushed . | . . . . . Highest Temperature 312 | . 312 273 26 32 Average Temperature 75 | . 88 94 8 11 Received Heat Transfer 1437 | . 273 . 282 882 Siege Activations . | . . . . . Robots Corrupted . | . . . . . Combat Hostiles . | . . . . . Parts Fried 11 | . . . 9 2 Impact Corruptions 12 | . . 1 9 2 Robots Melted . | . . . . . Combat Hostiles . | . . . . . Parts Melted 2 | . 2 . . . Heat Transferred 370 | . 370 . . . Parts Sabotaged . | . . . . . Parts Stolen . | . . . . . Parts Stripped . | . . . . . Power Chain Reactions . | . . . . . Alert | -11 -10 -10 -9 -8 ------- Run | Yrd Mat Min Mat Mat Peak Influence 389 | . 177 112 340 389 Initial 33 | . . 33 . . Average 91 | . 63 41 165 125 Maximum Alert Level 1 | . . . 1 1 Low Security (%) 84 | 100 100 100 58 65 Level 1 15 | . . . 41 34 Level 2 . | . . . . . Level 3 . | . . . . . Level 4 . | . . . . . Level 5 . | . . . . . High Security . | . . . . . Max Security . | . . . . . Squads Dispatched 15 | . 5 . 4 6 Investigation 10 | . 4 . 2 4 Extermination . | . . . . . Reinforcement 5 | . 1 . 2 2 Assault . | . . . . . Garrison . | . . . . . Intercept . | . . . . . Searches Triggered . | . . . . . Construction Impeded . | . . . . . Haulers Reinforced . | . . . . . Active Scanning Responses . | . . . . . Cargo Convoy Interrupts . | . . . . . Stealth | -11 -10 -10 -9 -8 --------- Run | Yrd Mat Min Mat Mat Distress Signals 6 | . 2 . 1 3 Communications Jammed . | . . . . . Distress Signals . | . . . . . Times Spotted 108 | . 33 3 27 45 Peak Tracking Total 16 | . 7 3 5 16 Tactical Retreats 11 | . 4 . 2 5 Traps | -11 -10 -10 -9 -8 ------- Run | Yrd Mat Min Mat Mat Traps Triggered 8 | . 7 . . 1 Indirectly . | . . . . . Trap Hack Attempts . | . . . . . Triggered . | . . . . . Disarmed . | . . . . . Reprogrammed . | . . . . . Reused . | . . . . . Traps Extracted . | . . . . . Installed 5 | . . 5 . . Triggered . | . . . . . Machines | -11 -10 -10 -9 -8 ---------- Run | Yrd Mat Min Mat Mat Machines Disabled . | . . . . . Max in Single Turn . | . . . . . Garrison Access 1 | . . . . 1 Machines Repaired . | . . . . . Machines Dismantled . | . . . . . Machines Sabotaged . | . . . . . Overloaded Fab Kills . | . . . . . Hacking | -11 -10 -10 -9 -8 --------- Run | Yrd Mat Min Mat Mat Machines Accessed 18 | . 5 1 6 6 Terminals 12 | . 5 . 5 2 Fabricators . | . . . . . Repair Stations 1 | . . . . 1 Recycling Units 1 | . . . 1 . Scanalyzers 2 | . . . . 2 Garrison Access 1 | . . . . 1 Total Hacks 63 | . 17 1 18 27 Successful 44 | . 9 1 10 24 Failed 19 | . 8 . 8 3 Catastrophic 3 | . 1 . 1 1 Database Lockouts . | . . . . . Manual 35 | . 15 . 15 5 Terminals 39 | . 17 . 17 5 Fabricators . | . . . . . Repair Stations 4 | . . . . 4 Recycling Units 1 | . . . 1 . Scanalyzers 16 | . . . . 16 Garrison Access 2 | . . . . 2 Terminal Hacks 11 | . 5 1 4 1 Record 1 | . . . 1 . Robot Analysis 2 | . 2 . . . Open Door 1 | . . 1 . . Branch Access Points 2 | . . . 1 1 Unreport Threat 4 | . 2 . 2 . Dispatch Records 1 | . 1 . . . Fabricator Hacks . | . . . . . Repair Station Hacks 4 | . . . . 4 Scan Component 2 | . . . . 2 Repair 2 | . . . . 2 Recycling Unit Hacks 1 | . . . 1 . Report Inventory 1 | . . . 1 . Scanalyzer 16 | . . . . 16 Insert Component 8 | . . . . 8 Analyze 8 | . . . . 8 Garrison Access Hacks 1 | . . . . 1 Seal Access 1 | . . . . 1 Unauthorized Hacks 11 | . 4 . 5 2 Terminals 11 | . 4 . 5 2 Track 1 | . . . 1 . Botnet 10 | . 4 . 4 2 Fabricators . | . . . . . Repair Stations . | . . . . . Recycling Units . | . . . . . Scanalyzers . | . . . . . Garrison Access . | . . . . . Data Cores Recovered . | . . . . . Used . | . . . . . Hacking Detections 14 | . 5 . 4 5 Full Trace Events 10 | . 4 . 3 3 Feedback Events . | . . . . . Feedback Blocked . | . . . . . Robot Schematics Acquired . | . . . . . Robots Built . | . . . . . Authchips . | . . . . . Time . | . . . . . Total Robot Build Rating . | . . . . . Part Schematics Acquired 8 | . . . . 8 Parts Built . | . . . . . Authchips . | . . . . . Time . | . . . . . Total Part Build Rating . | . . . . . Parts Repaired 2 | . . . . 2 Time 76 | . . . . 76 Parts Recycled . | . . . . . Recycled Matter . | . . . . . Retrieved Matter . | . . . . . Retrieved Components . | . . . . . Parts Scanalyzed 8 | . . . . 8 Part Schematics Acquired 8 | . . . . 8 Parts Damaged . | . . . . . Bothacking | -11 -10 -10 -9 -8 ------------ Run | Yrd Mat Min Mat Mat Used RIF Installer . | . . . . . Robots Hacked . | . . . . . Non-combat . | . . . . . Combat . | . . . . . Robot Hacks Applied . | . . . . . Relay Couplers Released . | . . . . . Fabnet Peak Effective % . | . . . . . Robots Rewired . | . . . . . Allies Hacked . | . . . . . Hacks Repelled . | . . . . . Allies | -11 -10 -10 -9 -8 -------- Run | Yrd Mat Min Mat Mat Total Allies 5 | . . 5 . . Largest Group 5 | . . 5 5 . Highest-Rated Group 82 | . . 82 82 . Highest-Rated Ally 31 | . . 31 31 . Total Orders . | . . . . . Ally Attacks 39 | . . 6 33 . Total Damage 512 | . . 82 430 . Kills 6 | . . 3 3 . Allies Corrupted . | . . . . . Allies Melted 1 | . . . 1 . Intel | -11 -10 -10 -9 -8 ------- Run | Yrd Mat Min Mat Mat Robot Analysis Total 2 | . 2 . . . Derelict Logs Recovered 1 | . . 1 . . Drone Launches . | . . . . . Drone Recoveries . | . . . . . Exploration | -11 -10 -10 -9 -8 ------------- Run | Yrd Mat Min Mat Mat Turns Passed 4270 | 114 1515 888 924 829 Spaces Moved 2040 | 66 732 491 359 392 Core 15 | 13 1 . . 1 Treads 100 | 53 47 . . . Legs 1923 | . 684 491 359 389 Wheels . | . . . . . Hover . | . . . . . Flight 2 | . . . . 2 Fastest Speed 35 | 50 120 120 190 35 Average Speed 164 | 138 172 172 190 121 Slowest Speed 260 | 160 200 190 190 260 Overloaded Moves . | . . . . . Propulsion Burnouts . | . . . . . Robots Hopped . | . . . . . Cave-ins Triggered . | . . . . . Exploration Rate (%) 51 | 4 94 86 40 34 Regions Visited 4 Branch Regions 1 Pre-discovered Areas 1 | . . 1 . . Known Exits Taken 3 | . 1 1 1 . Unknown Exits Taken 1 | 1 . . . . Scrap Searched 1 | . . 1 . . Spaces Dug 4 | . . 1 3 . Terrain Destroyed 13 | . . 1 3 9 Melee 4 | . . 1 3 . Projectile . | . . . . . AOE 9 | . . . . 9 Terrain Rammed . | . . . . . Walls Destroyed . | . . . . . Machines Disabled . | . . . . . Actions | -11 -10 -10 -9 -8 --------- Run | Yrd Mat Min Mat Mat Total 2662 | 86 891 530 509 646 Wait 262 | 9 51 24 41 137 Move 2036 | 65 731 490 358 392 Hop . | . . . . . Pick Up 34 | 6 10 1 6 11 Fast Attach 28 | 6 10 2 4 6 Attach 10 | . . . 2 8 Detach 2 | . 2 . . . Swap 21 | . 9 2 6 4 Drop 54 | . 18 4 13 19 Fire 95 | . 60 . 33 2 Melee 115 | . . 2 46 67 Ram . | . . . . . Kick . | . . . . . Crush . | . . . . . Escape Stasis . | . . . . . Rewire . | . . . . . Trap 5 | . . 5 . . Miscellaneous . | . . . . . Route ------- -11/Scrapyard -10/Materials (discovered 4 exits: *Mat x3 / *Min) -10/Mines (discovered 2 exits: *Mat x2) -9/Materials (discovered 2 exits: *Mat / *Min) -8/Materials History --------- Turn | Location | Event 18 | -11/Scrapyard | Discovered new exit (range 16) 115 | -11/Scrapyard | Entered Materials 131 | -10/Materials | Discovered new exit (range 16) 264 | -10/Materials | Discovered new exit (range 14) 329 | -10/Materials | Identified exit to Mines 622 | -10/Materials | Discovered new exit (range 5) 628 | -10/Materials | Identified exit to Materials 735 | -10/Materials | Discovered exit to Materials (range 15) 812 | -10/Materials | Build established: Mutant 1630 | -10/Materials | Entered Mines 1765 | -10/Mines | Discovered exit to Materials (range 9) 1962 | -10/Mines | Assisted by bots powering up and referring to "LRC-V3" 2038 | -10/Mines | Found a hidden stash of uninstalled traps 2060 | -10/Mines | Build established: Scavenger-Mutant 2127 | -10/Mines | Learned Materials trap positions 2225 | -10/Mines | Learned location of Storage (-7) 2322 | -10/Mines | Met a Derelict who couldn't figure out how to use a Trap Extractor 2446 | -10/Mines | Discovered exit to Materials (range 12) 2518 | -10/Mines | Entered Materials 2518 | -9/Materials | Accompanied by 5 allies 2518 | -9/Materials | Evolved 2 slots: Utility x2 2519 | -9/Materials | Loaded intel: 21 trap records 2523 | -9/Materials | Led the pair of lost Derelicts to an unsafe place 2646 | -9/Materials | Build established: Mutant 2840 | -9/Materials | Lost 4 allies 3211 | -9/Materials | Discovered new exit (range 15) 3256 | -9/Materials | Identified exit to Mines 3423 | -9/Materials | Discovered new exit (range 4) 3428 | -9/Materials | Identified exit to Materials 3442 | -9/Materials | Entered another Materials area 3442 | -8/Materials | Evolved 2 slots: Propulsion x2 3509 | -8/Materials | Repaired Hrd. Medium Armor Plating 3837 | -8/Materials | Build established: Hacker-Mutant 3872 | -8/Materials | Repaired Hrd. Medium Armor Plating 4146 | -8/Materials | Destroyed 9 combat bots 4224 | -8/Materials | Core integrity fell below 50% 4238 | -8/Materials | Core integrity fell below 20% 4271 | -8/Materials | Destroyed by G-47 Trooper with Particle Gun Last Messages --------------- 04258_ U-05 Engineer destroyed. 04259_ K-01 Serf collects debris. 04259_ Destroyed Unknown Device. 04259_ G-47 Trooper system corrupted by crushing effect. 04259_ Aluminum Leg fried. 04259_ Lgt. Nuclear Core fried. 04259_ G-47 Trooper destroyed. 04262_ K-01 Serf collects debris. 04263_ Critical hit (Burn: +37). 04263_ W-25 Informer sends out distress signal. 04264_ U-05 Engineer lays Concrete. 04265_ K-01 Serf collects debris. 04265_ Dropped Sml. Storage Unit. 04266_ Dropped Hvy. Flail. 04266_ Dropped Hrd. Light Armor Plating. 04266_ U-05 Engineer lays Concrete. 04270_ K-01 Serf destroyed. 04270_ G-50 Soldier destroyed. 04270_ U-05 Engineer destroyed. Map ----- +----------------------------------------------------+ | ????????????????????????????????# #=######?????? | | ??????????????????????????#####?# #[[ [= #?????? | | ??????????????????????????#"""#?# =*#%!%%= #?????? | | ??????????????????????????#"G"#?# ==#[="" [#?????? | | ????????????????????????###" "###==%/*S"" [#?????? | | ????????????????????????# %[ =%#[""!*!####### | | ???????????????????????## **# %=!=%+==! | | ???????????????????????#" % ############## | | ???????????????????????#T #???????????# | | ???????????????????????#" #???????????# | | ???????????????????????## #???????????# | | ????????????????????????# ]]= +???????????# | | ????????????????????????# ]]= # ??????????# | | ?????????????????# ???# ]]= # ?????????# | | ?????????????????# #### ####????????## | | ????????????????## "#???????????? | | ???????????? T#???????????? | | ???????????? "#???????????? | | ???????????? ##???????????? | | ?????????????##### #????????????? | | ?????????????????# ############ #????????????? | | ?????????????????# #??????????# #????????????? | | ?????????????????# #??????????# #????????????? | | ?????????????????# ############ #????????????? | | ?????????#???????# ## [ # #????????????? | | ?????????# ????## ## w@ # #????????????? | | ?????????#! ??# * % #/ # #????????????? | | ?????????# """ #!% %=g=! # +????????????? | | ?????????#= """ + =g%%%% " + #????????????? | | ?????????# """ # [%=H| "" #####????????????? | | ?????????# ??#% ==%! #????????????????? | | ?????????#! ????## #????????????????? | | ????????# ???????# # #######????????????????? | | ?????????????????# ### ##???????????????????#### | | ?????????????????# #?##?????????????????????# * | | ?????????????????# #????????????????????????# | | ?????????????????# ????????????????????????# = | | ?????????????????# #????????????????????????# | | ?????????????????# #????????????????????????#"S | | ?????????????????# #????????????????????????#""" | | ?????????????????# #????????????????????????# "" | | ?????????????????# #????????????????????????# | | ?????????????????# #????????????????????????#### | | ?????????????????? ??????????????????????????## | | ???????????????????????????????????????????????#!! | | ???????????????????????????????????????????????#! | | ???????????????????????????????????????????????#! | | ???????????????????????????????????????????????#! | | ???????????????????????????????????????????????##! | | ????????????????????????????????????????????????## | +----------------------------------------------------+ Best States ------------- Heat Dissipation 31 Energy Generation 14 Energy Capacity 265 Matter Stores 300 Matter Capacity 300 Sight Range 16 Terrain Scan Density 10 Armor Coverage 450 Evasion (%) 55 Recoil Reduction 2 Offensive Hacking 20 Item Schematics ----------------- Cesium-ion Thruster | -8/Materials | Scanalyzed Grenade Launcher | -8/Materials | Scanalyzed Assault Rifle | -8/Materials | Scanalyzed Rnf. Ion Engine | -8/Materials | Scanalyzed Lrg. Matter Pod | -8/Materials | Scanalyzed Hrd. Medium Armor Plating | -8/Materials | Scanalyzed Hrd. Light Armor Plating | -8/Materials | Scanalyzed Imp. Signal Interpreter | -8/Materials | Scanalyzed Robot Schematics ------------------ None Fabricated ------------ Nothing Alien Tech Used ----------------- None Achievements -------------- None Challenges ------------ None Game ------ Seed MicroThermoelectricCanceller Manual? 0 Play Time 00:50:08 Cumulative 18.5 hours Start 2024.04.07 @ 09:47:34 End 2024.04.07 @ 12:40:39 Sessions 3 Manual Loads 0 Difficulty Rogue Special Mode None Game No. 18 Rogue 14 Adventurer 0 Explorer 4 Win Type - Total 0 Types 0/0/0/0/0/0/0/0/0 Lore% 19 Gallery% 24 Achievement% 23 Wizard Run 0 Options --------- Layout 1 ASCII 0 Keyboard 0 Movement Mouse Keybinds 0 Fullscreen 2 Font 32/SmallcapsGlow Map View 50x35 Zoom Use 0% Tactical HUD 1 Map Filters NONE Filters NONE Steam 1 RUN: d37bcf3a-f7a4-4ca2-915d-aa7ae095fb0c